bitfinex/quotes_BTCUSD_20251104
["timestamp","ask_amount","ask_price","bid_price","bid_amount"]
[1762233325416,4.83767869,106770.0,106760.0,0.00090514]
[1762233325841,4.84067869,106770.0,106760.0,0.00090514]
[1762233326245,4.84267869,106770.0,106760.0,0.00090514]
[1762233327166,4.87886097,106770.0,106760.0,0.00090514]
[1762233329307,0.93968084,106740.0,106730.0,0.11465397]
[1762233329491,0.93968084,106740.0,106730.0,0.11479871]
[1762233329726,0.93968084,106740.0,106730.0,0.13128871]
[1762233329941,0.9678442,106740.0,106730.0,0.13198353]
[1762233330360,0.9678442,106740.0,106730.0,0.13398353]
[1762233330570,0.9678442,106740.0,106730.0,0.13698353]
[1762233331247,0.9678442,106740.0,106730.0,0.13398353]
[1762233331670,0.9801226,106740.0,106730.0,0.13498353]
[1762233332167,0.9801226,106740.0,106730.0,0.13298353]
[1762233333589,0.79275142,106740.0,106730.0,0.13298353]
[1762233333820,0.40431819,106740.0,106730.0,0.33911113]
[1762233334036,0.37615483,106740.0,106730.0,0.32037226]
[1762233334921,0.21551471,106750.0,106740.0,0.18737118]
[1762233335146,0.59166954,106750.0,106740.0,0.02251]
[1762233335349,0.59166954,106750.0,106740.0,0.0503]
[1762233335759,0.59166954,106750.0,106740.0,0.23767118]
[1762233336205,0.59266954,106750.0,106740.0,0.23767118]
[1762233336335,0.59366954,106750.0,106740.0,0.23767118]
[1762233337180,0.59366954,106750.0,106740.0,0.0503]
[1762233337181,0.59266954,106750.0,106740.0,0.0503]
[1762233337420,0.96882437,106750.0,106740.0,0.0503]
[1762233337667,0.96882437,106750.0,106740.0,0.0513]
[1762233337951,0.98547437,106750.0,106740.0,0.0513]
[1762233338165,4.84784764,106750.0,106740.0,0.001]
[1762233338383,4.84684764,106750.0,106740.0,0.001]
[1762233338833,4.84684764,106750.0,106720.0,0.0002]
[1762233338834,0.18738873,106730.0,106720.0,0.0002]
[1762233339062,3.2662276,106730.0,106720.0,0.00068162]
[1762233339279,3.28998402,106730.0,106720.0,0.00068162]
[1762233339497,3.2996876,106730.0,106720.0,0.00068162]
[1762233339710,4.42815209,106730.0,106720.0,0.00068162]
[1762233339926,4.43115209,106730.0,106720.0,0.00068162]
[1762233340359,4.82162163,106730.0,106720.0,1e-08]
[1762233340790,4.80733437,106730.0,106720.0,0.00092652]
[1762233341209,4.81233437,106730.0,106720.0,0.00092652]
[1762233345216,4.81723437,106730.0,106720.0,0.00092652]
[1762233345423,4.78105209,106730.0,106720.0,0.00092652]
[1762233348335,4.84045551,106730.0,106720.0,0.00092652]
[1762233348547,4.81723437,106730.0,106720.0,0.00092652]
[1762233350746,4.81723437,106730.0,106720.0,1e-08]
[1762233350977,5.23589421,106730.0,106720.0,1e-08]
[1762233351217,6.01142501,106730.0,106720.0,1e-08]
[1762233351432,6.01097258,106730.0,106720.0,1e-08]
[1762233351880,5.89366761,106720.0,106710.0,1e-08]
[1762233352098,3.52744142,106700.0,106690.0,0.0002]
[1762233352315,5.84738268,106700.0,106690.0,0.00024827]
[1762233352525,4.75702751,106700.0,106690.0,0.00024827]
[1762233352801,4.78520804,106700.0,106690.0,0.00024827]
[1762233353024,4.8797841,106700.0,106690.0,0.00024827]
[1762233353244,6.00824859,106700.0,106690.0,0.00024827]
[1762233353896,6.01224859,106700.0,106690.0,0.00024827]
[1762233354170,4.8837841,106700.0,106690.0,0.00024827]
[1762233354399,4.8847841,106700.0,106690.0,0.00024827]
[1762233354621,4.87008478,106700.0,106690.0,0.00024827]
[1762233357835,4.87008478,106700.0,106690.0,0.00094346]
[1762233359281,0.18749414,106670.0,106660.0,0.0002]
[1762233359528,4.34449238,106670.0,106660.0,0.00034488]
[1762233359684,4.74405721,106670.0,106660.0,0.00034488]
[1762233359857,4.74405721,106670.0,106660.0,1e-08]
[1762233359858,4.78694265,106670.0,106660.0,1e-08]
[1762233360057,4.82312493,106670.0,106660.0,1e-08]
[1762233360467,3.61393399,106660.0,106650.0,1e-08]
[1762233360668,3.61393399,106660.0,106650.0,9.031e-05]
[1762233360669,4.1251996,106660.0,106650.0,9.031e-05]
[1762233360875,4.87490794,106660.0,106650.0,9.031e-05]
[1762233361084,4.83697454,106660.0,106650.0,9.031e-05]
[1762233361962,4.84908547,106660.0,106650.0,9.031e-05]
[1762233362366,4.64004187,106660.0,106650.0,9.031e-05]
[1762233362572,4.82755358,106660.0,106650.0,9.031e-05]
[1762233362778,4.82955358,106660.0,106650.0,9.031e-05]
[1762233363206,5.95801807,106660.0,106650.0,9.031e-05]
[1762233363410,5.95901807,106660.0,106650.0,9.031e-05]
[1762233363863,5.98223921,106660.0,106650.0,9.031e-05]
[1762233364459,4.4207828,106650.0,106640.0,0.0002]
[1762233364666,4.4207828,106650.0,106640.0,0.00034488]
[1762233364667,4.58194505,106650.0,106640.0,0.00034488]
[1762233364898,4.56464886,106650.0,106640.0,0.00034488]
[1762233365368,4.57622886,106650.0,106640.0,0.00034488]
[1762233365585,4.57498669,106650.0,106640.0,0.00034488]
[1762233366432,4.59228749,106650.0,106640.0,0.00034488]
[1762233366940,4.59228749,106650.0,106640.0,0.00134488]
[1762233367152,4.61550863,106650.0,106640.0,0.00134488]
[1762233369910,4.61550863,106650.0,106640.0,0.00250425]
[1762233371664,3.95610008,106630.0,106620.0,0.0002]
[1762233371900,4.11404842,106630.0,106620.0,0.0002]
[1762233372140,4.18545603,106630.0,106620.0,0.00066394]
[1762233372368,4.15033842,106630.0,106620.0,0.00066394]
[1762233373465,4.18072349,106630.0,106620.0,0.00066394]
[1762233373694,4.16862738,106630.0,106620.0,0.00066394]
[1762233374364,4.18241189,106630.0,106620.0,0.00066394]
[1762233374597,0.18761726,106600.0,106590.0,0.11289331]
[1762233374817,3.18763486,106590.0,106580.0,0.01538]
[1762233375037,3.64307047,106590.0,106580.0,0.02458649]
[1762233375250,3.66561047,106590.0,106580.0,0.00448332]
[1762233375474,4.00561047,106590.0,106580.0,0.01320807]
[1762233375693,4.05500169,106590.0,106580.0,0.01320807]
[1762233375913,4.00661047,106590.0,106580.0,0.02113639]
[1762233376358,3.57807486,106590.0,106580.0,0.02113639]
[1762233376569,4.15478441,106590.0,106580.0,0.01241164]
[1762233376786,4.19096669,106590.0,106580.0,0.01241164]
[1762233377016,4.28554275,106590.0,106580.0,0.01241164]
[1762233377278,4.28554275,106590.0,106580.0,0.00841164]
[1762233377538,4.32539648,106590.0,106580.0,0.00541164]
[1762233377831,4.33130326,106590.0,106580.0,0.01041164]
[1762233378290,4.35802137,106590.0,106580.0,0.01041164]
[1762233378418,4.34330325,106590.0,106580.0,0.01041164]
[1762233378612,4.30144952,106590.0,106580.0,0.00541164]
[1762233378839,4.32170804,106590.0,106580.0,0.00541164]
[1762233379104,4.34663541,106590.0,106580.0,0.00541164]
[1762233379592,4.34664194,106590.0,106580.0,0.00541164]
[1762233379798,4.31045966,106590.0,106580.0,0.00541164]
[1762233380002,4.34664194,106590.0,106580.0,0.00541164]
[1762233381009,4.36136065,106590.0,106580.0,0.00541164]
[1762233381767,0.18768768,106560.0,106550.0,0.00871269]
[1762233382117,3.61754721,106560.0,106550.0,0.0088576]
[1762233382129,4.21918413,106560.0,106550.0,0.00014491]
[1762233382511,4.24172413,106560.0,106550.0,0.00014491]
[1762233382766,4.25330413,106560.0,106550.0,0.00014491]
[1762233383027,4.25430413,106560.0,106550.0,0.00314491]
[1762233383523,4.21812185,106560.0,106550.0,0.00314491]
[1762233383794,4.21812185,106560.0,106530.0,0.0002]
[1762233383795,4.3773243,106540.0,106530.0,0.0002]
[1762233384021,4.3773243,106540.0,106530.0,0.00034503]
[1762233384022,3.33462126,106540.0,106530.0,0.00034503]
[1762233384298,3.95879818,106540.0,106530.0,0.00034503]
[1762233384564,4.87550773,106540.0,106530.0,0.00034503]
[1762233385092,4.88773572,106540.0,106530.0,0.00034503]
[1762233385327,4.31102617,106540.0,106530.0,0.00134503]
[1762233385614,4.27484389,106540.0,106530.0,0.00134503]
[1762233385867,1.13280046,106540.0,106530.0,0.01272503]
[1762233386381,1.13380046,106540.0,106530.0,0.01472503]
[1762233386671,3.92993754,106540.0,106530.0,0.03019503]
[1762233386960,3.92993754,106540.0,106530.0,0.134059]
[1762233386961,4.11766046,106540.0,106530.0,0.134059]
[1762233387236,3.87223652,106540.0,106530.0,0.134059]
[1762233387507,3.79380046,106540.0,106530.0,0.01472503]
[1762233387726,4.15634046,106540.0,106530.0,0.00334503]
[1762233387945,3.23963091,106540.0,106530.0,0.00334503]
[1762233388156,4.11766046,106540.0,106530.0,0.03019503]
[1762233388370,4.21223652,106540.0,106530.0,0.03135619]
[1762233388835,4.21223652,106540.0,106530.0,0.11071016]
[1762233389277,4.21223652,106540.0,106530.0,0.13522016]
[1762233389698,4.0245136,106540.0,106530.0,0.13522016]
[1762233389912,4.21223652,106540.0,106530.0,0.11071016]
[1762233390380,0.341,106540.0,106530.0,0.33167079]
[1762233390639,0.52872292,106540.0,106530.0,0.33167079]
[1762233390887,0.341,106540.0,106530.0,0.33167079]
[1762233391107,0.001,106540.0,106530.0,0.33167079]
[1762233391996,0.34,106550.0,106540.0,0.18772292]
[1762233392224,0.5277053,106550.0,106540.0,0.04869009]
[1762233393178,3.1877053,106550.0,106540.0,0.04869009]
[1762233393393,0.1887053,106550.0,106540.0,0.05069009]
[1762233393828,0.1897053,106550.0,106540.0,0.05569009]
[1762233394113,1.10641485,106550.0,106540.0,0.03118009]
[1762233394342,4.25702692,106550.0,106540.0,0.007]
[1762233394794,4.23967091,106550.0,106540.0,0.007]
[1762233395017,4.24873198,106550.0,106540.0,0.007]
[1762233395233,4.30227027,106550.0,106540.0,0.007]
[1762233395456,4.31373027,106550.0,106540.0,0.007]
[1762233395888,3.73602072,106550.0,106540.0,0.002]
[1762233396111,4.28631319,106550.0,106540.0,0.002]
[1762233396317,3.52772292,106540.0,106530.0,0.00034503]
[1762233396547,4.21476853,106540.0,106530.0,0.00034503]
[1762233396992,4.23884853,106540.0,106530.0,0.00034503]
[1762233397205,4.26526561,106540.0,106530.0,0.00034503]
[1762233397433,4.26526561,106540.0,106530.0,0.0100733]
[1762233397905,4.26526561,106540.0,106530.0,0.01123446]
[1762233398357,4.23884853,106540.0,106530.0,0.01123446]
[1762233398586,4.21476853,106540.0,106530.0,0.01223446]
[1762233399479,3.63805898,106540.0,106530.0,0.01223446]
[1762233399693,3.52772292,106540.0,106530.0,0.13163843]
[1762233400110,0.52772292,106540.0,106530.0,0.13163843]
[1762233400567,0.52772292,106540.0,106530.0,0.10685843]
[1762233400814,1.10443247,106540.0,106530.0,0.10685843]
[1762233401028,1.15356459,106540.0,106530.0,0.10685843]
[1762233401243,1.15356459,106540.0,106530.0,0.13163843]
[1762233401457,1.15356459,106540.0,106530.0,0.10685843]
[1762233402274,0.57685504,106540.0,106530.0,0.13163843]
[1762233402486,0.52772292,106540.0,106530.0,0.13163843]
[1762233402895,1.12019247,106540.0,106530.0,0.01223446]
[1762233403092,1.14427247,106540.0,106530.0,0.00250619]
[1762233403290,1.23884853,106540.0,106530.0,0.01126464]
[1762233403629,1.23984853,106540.0,106530.0,0.01726464]
[1762233404086,3.69932126,106540.0,106530.0,1e-08]
[1762233404313,4.32035518,106540.0,106530.0,1e-08]
[1762233404526,0.52777579,106510.0,106500.0,10.02486]
[1762233404743,1.13080534,106510.0,106500.0,10.00056201]
[1762233404967,1.2683243,106510.0,106500.0,10.00056201]
[1762233405185,4.13080534,106510.0,106500.0,10.00056201]
[1762233405399,4.13080534,106510.0,106500.0,10.00125906]
[1762233406040,4.10448534,106510.0,106500.0,10.02536906]
[1762233406706,3.52877579,106510.0,106500.0,10.02736906]
[1762233406909,3.18877579,106510.0,106500.0,10.21516248]
[1762233407114,3.002,106510.0,106500.0,10.21816248]
[1762233407337,0.002,106510.0,106500.0,10.21816248]
[1762233411480,0.77574405,106550.0,106500.0,10.21816248]
[1762233411481,0.1885645,106550.0,106530.0,0.18774054]
[1762233411692,3.0,106540.0,106530.0,0.18774054]
[1762233411928,3.0,106540.0,106530.0,0.21185054]
[1762233412160,3.0,106540.0,106530.0,0.23996054]
[1762233412586,0.18772292,106540.0,106530.0,0.23996054]
[1762233412801,0.18772292,106540.0,106530.0,0.05222]
[1762233413010,0.76543247,106540.0,106530.0,0.05522]
[1762233413263,0.86000853,106540.0,106530.0,0.05522]
[1762233413471,4.21585853,106540.0,106530.0,0.01486]
[1762233413679,4.21685853,106540.0,106530.0,0.01986]
[1762233414119,4.20100853,106540.0,106530.0,0.03611]
[1762233414324,4.20100853,106540.0,106530.0,0.06022]
[1762233415219,4.20100853,106540.0,106530.0,0.03611]
[1762233416522,4.21685853,106540.0,106530.0,0.03611]
[1762233417800,4.21685853,106540.0,106530.0,0.01986]
[1762233418011,4.24167853,106540.0,106530.0,0.01986]
[1762233418471,4.24167853,106540.0,106530.0,0.008]
[1762233418868,4.21685853,106540.0,106530.0,0.008]
[1762233419101,4.20100853,106540.0,106530.0,0.008]
[1762233419709,4.21685853,106540.0,106530.0,0.008]
[1762233420459,4.27786081,106540.0,106530.0,0.008]
[1762233420882,4.85457036,106540.0,106530.0,0.008]
[1762233421098,4.28735839,106540.0,106530.0,0.008]
[1762233421320,3.56392282,106530.0,106520.0,0.00023231]
[1762233421539,4.28634843,106530.0,106520.0,0.00023231]
[1762233421748,4.31231807,106530.0,106520.0,0.00023231]
[1762233422406,4.28625457,106530.0,106520.0,1e-08]
[1762233422625,4.31546171,106530.0,106520.0,0.00100001]
[1762233422848,4.31746171,106530.0,106520.0,1e-08]
[1762233423470,4.3274617,106530.0,106520.0,1e-08]
[1762233424368,3.84566929,106530.0,106520.0,1e-08]
[1762233424598,0.52777579,106510.0,106500.0,10.00056201]
[1762233424840,4.28633242,106510.0,106500.0,10.00934822]
[1762233425057,4.32544998,106510.0,106500.0,10.00056201]
[1762233425268,4.24609601,106510.0,106500.0,10.00056201]
[1762233425906,4.24609601,106510.0,106500.0,10.00156201]
[1762233425907,4.24809601,106510.0,106500.0,10.00156201]
[1762233427423,4.25300629,106510.0,106500.0,10.00156201]
[1762233428067,3.57413086,106510.0,106500.0,10.00256201]
[1762233428295,4.16894482,106510.0,106500.0,10.00256201]
[1762233428509,4.19376482,106510.0,106500.0,10.00256201]
[1762233428739,4.2299471,106510.0,106500.0,10.00256201]
[1762233429159,4.19376482,106510.0,106500.0,10.00256201]
[1762233429365,4.28834088,106510.0,106500.0,10.00256201]
[1762233429594,4.19376482,106510.0,106500.0,10.00256201]
[1762233430066,4.23994709,106510.0,106500.0,9.57405543]
[1762233430287,4.25654802,106510.0,106500.0,9.37208507]
[1762233430501,4.35112408,106510.0,106500.0,9.13857786]
[1762233430711,4.35112408,106510.0,106500.0,8.06563871]
[1762233430916,4.36112407,106510.0,106500.0,7.73938919]
[1762233431123,4.36112407,106510.0,106500.0,7.63403556]
[1762233431353,4.36112407,106510.0,106500.0,7.5396191]
[1762233431583,4.35812407,106510.0,106500.0,7.27800739]
[1762233431797,4.35612407,106510.0,106500.0,7.07954163]
[1762233432013,4.36112407,106510.0,106500.0,7.07954163]
[1762233432222,4.36412407,106510.0,106500.0,7.07954163]
[1762233432434,4.36412407,106510.0,106500.0,6.55185496]
[1762233432678,4.36412407,106510.0,106500.0,6.29406056]
[1762233432891,4.36412407,106510.0,106500.0,6.21281312]
[1762233433105,4.36412407,106510.0,106500.0,6.06038389]
[1762233433506,4.33752315,106510.0,106500.0,6.06038389]
[1762233433746,4.356897,106510.0,106500.0,6.06038389]
[1762233433971,4.37349793,106510.0,106500.0,5.51780749]
[1762233434628,4.36225943,106510.0,106500.0,5.51780749]
[1762233435295,4.32607715,106510.0,106500.0,5.51780749]
[1762233435525,4.31607716,106510.0,106500.0,5.51780749]
[1762233435742,4.35225944,106510.0,106500.0,5.51780749]
[1762233435954,4.31607716,106510.0,106500.0,5.51780749]
[1762233436385,4.36225943,106510.0,106500.0,5.51780749]
[1762233437291,4.30607717,106510.0,106500.0,5.51780749]
[1762233437724,3.96607717,106510.0,106500.0,5.51780749]
[1762233437938,3.76356509,106510.0,106500.0,5.51780749]
[1762233438563,3.95625046,106510.0,106500.0,5.51780749]
[1762233438986,3.59143046,106510.0,106500.0,5.51780749]
[1762233439203,3.88235126,106510.0,106500.0,5.54048749]
[1762233439417,4.06712705,106510.0,106500.0,5.54048749]
[1762233439631,3.43948634,106510.0,106500.0,5.56430749]
[1762233439849,3.86988126,106510.0,106500.0,5.75210091]
[1762233440063,3.7753052,106510.0,106500.0,5.75210091]
[1762233440279,3.77039492,106510.0,106500.0,5.56430749]
[1762233440692,3.77239492,106510.0,106500.0,5.75310091]
[1762233441116,3.76939492,106510.0,106500.0,5.75210091]
[1762233441335,3.86497098,106510.0,106500.0,5.57030749]
[1762233441555,4.11412677,106510.0,106500.0,5.52280749]
[1762233441809,3.68473185,106510.0,106500.0,5.52280749]
[1762233442030,4.15030905,106510.0,106500.0,5.52280749]
[1762233442472,3.72091413,106510.0,106500.0,5.54648749]
[1762233442690,4.06602677,106510.0,106500.0,5.54648749]
[1762233442918,3.90201098,106510.0,106500.0,5.52280749]
[1762233443150,3.49695606,106510.0,106500.0,5.52280749]
[1762233443363,3.87825098,106510.0,106500.0,5.52280749]
[1762233443605,4.08978677,106510.0,106500.0,5.52280749]
[1762233444077,3.77139492,106510.0,106500.0,5.54648749]
[1762233444264,3.77139492,106510.0,106500.0,5.57030749]
[1762233445559,3.77139492,106510.0,106500.0,5.75810091]
[1762233446444,3.342,106510.0,106500.0,5.75810091]
[1762233446694,0.77139492,106510.0,106500.0,5.75810091]
[1762233446925,0.86597098,106510.0,106500.0,5.75810091]
[1762233447365,0.77139492,106510.0,106500.0,5.75810091]
[1762233447584,0.342,106510.0,106500.0,5.75810091]
[1762233448271,0.002,106510.0,106500.0,5.75810091]
[1762233449650,0.001,106510.0,106500.0,5.75810091]
[1762233449875,0.42939492,106540.0,106530.0,0.18774054]
[1762233449876,0.34,106540.0,106530.0,0.18774054]
[1762233450093,0.82339348,106540.0,106530.0,0.03718]
[1762233450305,0.82339348,106540.0,106530.0,0.0722]
[1762233450528,1.0111164,106540.0,106530.0,0.0722]
[1762233450796,0.58172148,106540.0,106530.0,0.0722]
[1762233451030,0.95811784,106540.0,106530.0,0.0752]
[1762233451252,0.98000784,106540.0,106530.0,0.003]
[1762233451469,4.01321784,106540.0,106530.0,0.004]
[1762233451978,3.55161292,106540.0,106530.0,0.004]
[1762233452191,4.01321784,106540.0,106530.0,0.004]
[1762233452415,4.1077939,106540.0,106530.0,0.004]
[1762233453108,4.14397618,106540.0,106530.0,0.004]
[1762233454979,3.71458126,106540.0,106530.0,0.004]
[1762233455229,4.14397618,106540.0,106530.0,0.004]
[1762233455801,3.71143805,106540.0,106530.0,0.004]
[1762233456005,4.14083297,106540.0,106530.0,0.004]
[1762233456251,4.57022789,106540.0,106530.0,0.004]
[1762233457510,4.57413712,106540.0,106530.0,0.001]
[1762233457755,4.57413712,106540.0,106510.0,0.00023234]
[1762233457756,3.57394043,106520.0,106510.0,0.00023234]
[1762233457967,4.54919633,106520.0,106510.0,0.00023234]
[1762233458179,4.59903665,106520.0,106510.0,0.00023234]
[1762233458401,4.58903666,106520.0,106510.0,0.00023234]
[1762233458619,4.62727004,106520.0,106510.0,0.00023234]
[1762233459269,4.61727005,106520.0,106510.0,0.00023234]
[1762233459684,4.62927004,106520.0,106510.0,0.00123234]
[1762233459899,4.61927005,106520.0,106510.0,0.00123234]
[1762233460114,4.60563973,106520.0,106510.0,0.00223234]
[1762233460567,4.62036765,106520.0,106510.0,0.00223234]
[1762233464742,4.19097273,106520.0,106510.0,0.00223234]
[1762233465148,3.99560655,106520.0,106510.0,0.00223234]
[1762233465353,4.19097273,106520.0,106510.0,0.00223234]
[1762233466945,4.62036765,106520.0,106510.0,0.00223234]
[1762233468250,4.04229667,106520.0,106510.0,0.03987234]
[1762233468481,3.85453851,106520.0,106510.0,0.11922631]
[1762233468721,3.79012284,106520.0,106510.0,0.3419621]
[1762233468933,3.96315308,106520.0,106510.0,0.15418631]
[1762233469341,3.99933536,106520.0,106510.0,0.15418631]
[1762233469549,4.09191142,106520.0,106510.0,0.03887234]
[1762233469768,4.08791142,106520.0,106510.0,0.03787234]
[1762233469973,4.08991142,106520.0,106510.0,0.04287234]
[1762233470187,4.08991142,106520.0,106510.0,0.12222631]
[1762233470359,4.08991142,106520.0,106510.0,0.15718631]
[1762233470360,3.90215326,106520.0,106510.0,0.15718631]
[1762233470714,3.90215326,106520.0,106510.0,0.3449621]
[1762233470919,0.37818228,106520.0,106510.0,0.3449621]
[1762233471351,0.8075772,106520.0,106510.0,0.3449621]
[1762233471972,0.8075772,106520.0,106510.0,0.07783234]
[1762233472183,0.8075772,106520.0,106510.0,0.02031234]
[1762233472184,4.42473028,106520.0,106510.0,0.02031234]
[1762233472388,4.54107634,106520.0,106510.0,0.00523234]
[1762233472605,4.51930634,106520.0,106510.0,0.02779234]
[1762233472814,4.54107634,106520.0,106510.0,0.00523234]
[1762233473020,4.11168142,106520.0,106510.0,0.00523234]
[1762233473220,3.99533536,106520.0,106510.0,0.10714631]
[1762233473419,0.99533536,106520.0,106510.0,0.10714631]
[1762233473671,4.04954536,106520.0,106510.0,0.00523234]
[1762233473900,4.47894028,106520.0,106510.0,0.00523234]
[1762233475356,4.01710536,106520.0,106510.0,0.08458631]
[1762233475556,4.11168142,106520.0,106510.0,0.08458631]
[1762233476085,4.01710536,106520.0,106510.0,0.00523234]
[1762233476672,4.04954536,106520.0,106510.0,0.00523234]
[1762233476882,4.47894028,106520.0,106510.0,0.00523234]
[1762233477542,4.50716897,106520.0,106510.0,0.00523234]
[1762233478694,4.16716897,106520.0,106510.0,0.00523234]
[1762233478895,4.26174503,106520.0,106510.0,0.00523234]
[1762233480582,3.74295519,106520.0,106510.0,0.00523234]
[1762233480881,4.60174503,106520.0,106510.0,0.00523234]
[1762233481147,4.57351634,106520.0,106510.0,0.00523234]
[1762233481735,4.54107634,106520.0,106510.0,0.00523234]
[1762233482179,4.57351634,106520.0,106510.0,0.00523234]
[1762233483837,4.57351634,106520.0,106510.0,0.06275234]
[1762233483838,3.99533536,106520.0,106510.0,0.06275234]
[1762233484306,3.99533536,106520.0,106510.0,0.14210631]
[1762233485804,3.99533536,106520.0,106510.0,0.00523234]
[1762233485805,4.44650028,106520.0,106510.0,0.00523234]
[1762233486888,4.44650028,106520.0,106510.0,0.02779234]
[1762233486889,3.99533536,106520.0,106510.0,0.02779234]
[1762233487108,4.42473028,106520.0,106510.0,0.02779234]
[1762233487327,4.51930634,106520.0,106510.0,0.02779234]
[1762233487536,3.99533536,106520.0,106510.0,0.14210631]
[1762233489327,3.8075772,106520.0,106510.0,0.14210631]
[1762233489541,0.8075772,106520.0,106510.0,0.3298821]
[1762233489972,0.43139492,106520.0,106510.0,0.3298821]
[1762233490162,0.61915308,106520.0,106510.0,0.14210631]
[1762233492454,0.43139492,106520.0,106510.0,0.3298821]
[1762233493336,0.61915308,106520.0,106510.0,0.14210631]
[1762233494523,0.43139492,106520.0,106510.0,0.3298821]
[1762233494906,0.002,106520.0,106510.0,0.3298821]
[1762233495523,0.18975816,106520.0,106510.0,0.14210631]
[1762233495718,0.61915308,106520.0,106510.0,0.16088388]
[1762233495914,0.61915308,106520.0,106510.0,0.14210631]
[1762233497095,0.43139492,106520.0,106510.0,0.3298821]
[1762233497964,0.61915308,106520.0,106510.0,0.14210631]
[1762233498978,0.43139492,106520.0,106510.0,0.34865967]
[1762233499140,0.61915308,106520.0,106510.0,0.3298821]
[1762233500072,0.61915308,106520.0,106510.0,0.14210631]
[1762233500291,0.61915308,106520.0,106510.0,0.16088388]
[1762233500470,0.65142783,106520.0,106510.0,0.16088388]
[1762233501069,0.46366967,106520.0,106510.0,0.34865967]
[1762233501281,0.46366967,106520.0,106510.0,0.3298821]
[1762233501776,0.002,106520.0,106510.0,0.3298821]
[1762233502263,0.46366967,106520.0,106510.0,0.14210631]
[1762233502512,0.46266967,106520.0,106510.0,0.13710631]
[1762233502793,0.68661011,106520.0,106510.0,0.13710631]
[1762233503031,3.7526512,106520.0,106510.0,0.14410631]
[1762233503433,3.7506512,106520.0,106510.0,0.13710631]
[1762233503633,3.68761011,106520.0,106510.0,0.14910631]
[1762233504056,3.68661011,106520.0,106510.0,0.14010631]
[1762233504261,3.68661011,106520.0,106510.0,0.06075234]
[1762233504469,3.68761011,106520.0,106510.0,0.14710631]
[1762233508796,3.22594044,106520.0,106510.0,0.14710631]
[1762233508913,3.68761011,106520.0,106510.0,0.14710631]
[1762233509121,3.65142783,106520.0,106510.0,0.14710631]
[1762233509531,3.68761011,106520.0,106510.0,0.14710631]
[1762233510797,3.78218617,106520.0,106510.0,0.06775234]
[1762233511016,4.17533617,106520.0,106510.0,0.01023234]
[1762233511188,4.20324282,106520.0,106510.0,1e-08]
[1762233511401,4.23147544,106520.0,106510.0,1e-08]
[1762233511599,4.20847805,106520.0,106510.0,1e-08]
[1762233512228,3.56395807,106510.0,106500.0,5.51634277]
[1762233512428,4.1885838,106510.0,106500.0,5.51634277]
[1762233512758,4.1885838,106510.0,106500.0,5.51657516]
[1762233513426,4.1905838,106510.0,106500.0,5.0529224]
[1762233513665,4.21358119,106510.0,106500.0,4.81622487]
[1762233513863,4.22558118,106510.0,106500.0,4.69347747]
[1762233514283,4.23558117,106510.0,106500.0,4.16163041]
[1762233514518,4.25031736,106510.0,106500.0,3.93987862]
[1762233514691,4.25031736,106510.0,106500.0,3.8696575]
[1762233515208,3.65107426,106510.0,106500.0,3.8696575]
[1762233515331,4.11274393,106510.0,106500.0,3.8696575]
[1762233515905,4.12747409,106510.0,106500.0,3.8696575]
[1762233516457,4.11274393,106510.0,106500.0,3.8696575]
[1762233517266,4.13274391,106510.0,106500.0,3.8696575]
[1762233517502,4.22731997,106510.0,106500.0,3.8696575]
[1762233519012,4.23240367,106510.0,106500.0,3.8696575]
[1762233519477,4.23205077,106510.0,106500.0,3.8696575]
[1762233519800,4.24205076,106510.0,106500.0,3.8696575]
[1762233520196,4.23205077,106510.0,106500.0,3.8696575]
[1762233520643,4.24205076,106510.0,106500.0,3.8696575]
[1762233521309,4.26504815,106510.0,106500.0,3.43629148]
[1762233521942,4.26304815,106510.0,106500.0,3.43529148]
[1762233522138,3.80137848,106510.0,106500.0,2.84861362]
[1762233522338,4.27004815,106510.0,106500.0,2.69214445]
[1762233522539,4.27504815,106510.0,106500.0,2.52941088]
[1762233522888,4.30328741,106510.0,106500.0,2.28471916]
[1762233523069,4.30328741,106510.0,106500.0,1.98496951]
[1762233523293,4.30328741,106510.0,106500.0,1.5172472]
[1762233523294,4.77495707,106510.0,106500.0,1.5172472]
[1762233523498,4.3132874,106510.0,106500.0,1.46338357]
[1762233523733,4.3132874,106510.0,106500.0,1.16136072]
[1762233523912,4.3132874,106510.0,106500.0,1.07243014]
[1762233524110,4.3132874,106510.0,106500.0,0.873365]
[1762233524312,4.30328741,106510.0,106500.0,0.873365]
[1762233524519,4.3132874,106510.0,106500.0,0.873365]
[1762233524869,4.75022089,106510.0,106500.0,0.31174274]
[1762233525071,3.58399332,106490.0,106480.0,0.004]
[1762233525271,4.65484544,106490.0,106480.0,0.00414454]
[1762233525518,4.68637544,106490.0,106480.0,0.00414454]
[1762233525805,4.71461816,106490.0,106480.0,0.00414454]
[1762233526003,4.2299511,106490.0,106480.0,0.00414454]
[1762233526147,4.2319511,106490.0,106480.0,0.00414454]
[1762233526353,3.0,106440.0,106430.0,0.22938225]
[1762233526574,0.46166967,106440.0,106430.0,0.03221484]
[1762233526775,0.46166967,106440.0,106430.0,0.2536317]
[1762233526776,3.46166967,106440.0,106430.0,0.2536317]
[1762233526932,0.46166967,106440.0,106430.0,0.2536317]
[1762233527138,0.46166967,106440.0,106430.0,0.25363178]
[1762233527348,0.46166967,106440.0,106430.0,0.30824629]
[1762233527546,0.46166967,106440.0,106430.0,0.25363178]
[1762233528220,0.46166967,106440.0,106430.0,0.07371484]
[1762233528221,0.46366967,106440.0,106430.0,0.07371484]
[1762233529099,0.46366967,106440.0,106430.0,0.26163178]
[1762233529325,0.46466967,106440.0,106430.0,0.26163178]
[1762233530071,0.003,106440.0,106430.0,0.26163178]
[1762233530201,0.48761782,106450.0,106430.0,0.12912935]
[1762233530409,0.46166967,106440.0,106430.0,0.31704167]
[1762233530663,0.46166967,106440.0,106430.0,0.26162716]
[1762233531092,0.46166967,106440.0,106430.0,0.25525492]
[1762233531499,0.46166967,106440.0,106430.0,0.26125492]
[1762233531716,3.56205195,106440.0,106430.0,0.0079726]
[1762233531926,3.65662801,106440.0,106430.0,0.0019726]
[1762233532154,3.84652729,106440.0,106430.0,0.0099726]
[1762233532556,4.20829665,106440.0,106430.0,0.0099726]
[1762233532763,4.20704689,106440.0,106430.0,0.0019726]
[1762233532965,4.23530264,106440.0,106430.0,0.0019726]
[1762233533364,4.23630264,106440.0,106430.0,0.0019726]
[1762233533562,4.23530264,106440.0,106430.0,0.0019726]
[1762233533794,4.22530265,106440.0,106430.0,0.0019726]
[1762233534004,4.21478304,106440.0,106430.0,0.0019726]
[1762233534213,4.18652729,106440.0,106430.0,0.0019726]
[1762233534391,4.18752729,106440.0,106430.0,0.0029726]
[1762233534525,4.21578107,106440.0,106430.0,0.0029726]
[1762233534909,4.21478107,106440.0,106430.0,0.0019726]
[1762233535102,4.21778107,106440.0,106430.0,0.0029726]
[1762233536418,4.18952729,106440.0,106430.0,0.0029726]
[1762233538813,4.00162801,106440.0,106430.0,0.0029726]